[Event "Titled Tuesday Blitz August 15 Early 2023"]
[White "bteillet"]
[Black "Itkis, Boris"]
[BlackFideId "1209167"]
[WhiteElo "2232"]
[BlackElo "2466"]
[Result "1-0"]
[Round "2"]
[TimeControl "180+1"]
[Date "2023.08.15"]
[WhiteClock "0:01:33"]
[BlackClock "0:01:10"]
[Board "209"]

1. b4 {[%clk 0:02:59]}  c6 {[%clk 0:02:59]} 2. Bb2 {[%clk 0:02:58]}  a5 {[%clk 0:03:00]} 3. bxa5 {[%clk 0:02:55]}  Qxa5 {[%clk 0:02:58]} 4. e3 {[%clk 0:02:55]}  Nf6 {[%clk 0:02:58]} 5. Nf3 {[%clk 0:02:55]}  g6 {[%clk 0:02:56]} 6. Be2 {[%clk 0:02:55]}  Bg7 {[%clk 0:02:55]} 7. O-O {[%clk 0:02:56]}  O-O {[%clk 0:02:56]} 8. d4 {[%clk 0:02:56]}  d5 {[%clk 0:02:55]} 9. Nbd2 {[%clk 0:02:55]}  Bf5 {[%clk 0:02:55]} 10. c4 {[%clk 0:02:54]}  Nbd7 {[%clk 0:02:52]} 11. Qb3 {[%clk 0:02:51]}  Rfb8 {[%clk 0:02:50]} 12. a4 {[%clk 0:02:47]}  Ne4 {[%clk 0:02:47]} 13. Nxe4 {[%clk 0:02:43]}  dxe4 {[%clk 0:02:34]} 14. Nh4 {[%clk 0:02:40]}  c5 {[%clk 0:02:30]} 15. Nxf5 {[%clk 0:02:37]}  gxf5 {[%clk 0:02:29]} 16. Rfd1 {[%clk 0:02:32]}  e6 {[%clk 0:02:25]} 17. Bh5 {[%clk 0:02:29]}  cxd4 {[%clk 0:02:24]} 18. exd4 {[%clk 0:02:28]}  Nf6 {[%clk 0:02:24]} 19. Be2 {[%clk 0:02:23]}  Ne8 {[%clk 0:02:17]} 20. Bc3 {[%clk 0:02:22]}  Qc7 {[%clk 0:02:16]} 21. c5 {[%clk 0:02:14]}  Nf6 {[%clk 0:02:13]} 22. Bc4 {[%clk 0:02:11]}  Rd8 {[%clk 0:02:13]} 23. Rab1 {[%clk 0:02:06]}  Nd5 {[%clk 0:02:10]} 24. Bxd5 {[%clk 0:01:55]}  Rxd5 {[%clk 0:02:11]} 25. Qxb7 {[%clk 0:01:54]}  Qxb7 {[%clk 0:02:11]} 26. Rxb7 {[%clk 0:01:54]}  Rxa4 {[%clk 0:02:11]} 27. c6 {[%clk 0:01:54]}  Rd8 {[%clk 0:01:32]} 28. c7 {[%clk 0:01:50]}  Rc8 {[%clk 0:01:32]} 29. Rb8 {[%clk 0:01:49]}  Ra8 {[%clk 0:01:32]} 30. Rxa8 {[%clk 0:01:33]}  Rxa8 {[%clk 0:01:10]} 31. Rb1 {[%clk 0:01:33]} 1-0


[Site "https://www.chess.com"]

[Event "Titled Tuesday Blitz August 15 Early 2023"]
[White "Zaichenko, Daria"]
[Black "slidingknight2775"]
[WhiteFideId "4197453"]
[WhiteElo "2207"]
[BlackElo "2458"]
[Result "0-1"]
[Round "2"]
[TimeControl "180+1"]
[Date "2023.08.15"]
[WhiteClock "0:00:00"]
[BlackClock "0:00:07"]
[Board "216"]

1. e4 {[%clk 0:03:00]}  c6 {[%clk 0:02:58]} 2. d4 {[%clk 0:02:39]}  d5 {[%clk 0:02:58]} 3. Nc3 {[%clk 0:02:38]}  dxe4 {[%clk 0:02:57]} 4. Nxe4 {[%clk 0:02:37]}  Nf6 {[%clk 0:02:58]} 5. Nxf6+ {[%clk 0:02:35]}  exf6 {[%clk 0:02:59]} 6. c3 {[%clk 0:02:32]}  Bd6 {[%clk 0:02:59]} 7. Bd3 {[%clk 0:02:32]}  O-O {[%clk 0:02:59]} 8. Qc2 {[%clk 0:02:31]}  Re8+ {[%clk 0:02:59]} 9. Be3 {[%clk 0:02:29]}  h5 {[%clk 0:02:58]} 10. O-O-O {[%clk 0:02:29]}  Nd7 {[%clk 0:02:55]} 11. Kb1 {[%clk 0:02:26]}  Nf8 {[%clk 0:02:50]} 12. Ne2 {[%clk 0:02:21]}  b5 {[%clk 0:02:48]} 13. Ng3 {[%clk 0:02:19]}  Be6 {[%clk 0:02:33]} 14. Nxh5 {[%clk 0:02:15]}  Qa5 {[%clk 0:02:13]} 15. b3 {[%clk 0:02:09]}  b4 {[%clk 0:02:11]} 16. c4 {[%clk 0:01:57]}  Qxh5 {[%clk 0:02:11]} 17. h3 {[%clk 0:01:48]}  a5 {[%clk 0:01:59]} 18. g4 {[%clk 0:01:47]}  Qh4 {[%clk 0:01:57]} 19. Rdf1 {[%clk 0:01:44]}  Bd7 {[%clk 0:01:37]} 20. Rfg1 {[%clk 0:01:38]}  Ne6 {[%clk 0:01:34]} 21. g5 {[%clk 0:01:34]}  Nxg5 {[%clk 0:00:54]} 22. Bxg5 {[%clk 0:01:23]}  fxg5 {[%clk 0:00:54]} 23. c5 {[%clk 0:01:12]}  Bf4 {[%clk 0:00:54]} 24. Be4 {[%clk 0:01:06]}  Rac8 {[%clk 0:00:50]} 25. Kb2 {[%clk 0:01:00]}  Be6 {[%clk 0:00:50]} 26. Bf3 {[%clk 0:00:38]}  Red8 {[%clk 0:00:47]} 27. Rg4 {[%clk 0:00:35]}  Qh7 {[%clk 0:00:30]} 28. Be4 {[%clk 0:00:33]}  f5 {[%clk 0:00:29]} 29. Bd3 {[%clk 0:00:31]}  Rxd4 {[%clk 0:00:20]} 30. Rg2 {[%clk 0:00:17]}  Rcd8 {[%clk 0:00:17]} 31. Rd1 {[%clk 0:00:16]}  Be5 {[%clk 0:00:16]} 32. Kc1 {[%clk 0:00:13]}  Bf6 {[%clk 0:00:15]} 33. Rg3 {[%clk 0:00:12]}  g6 {[%clk 0:00:15]} 34. Rd2 {[%clk 0:00:09]}  Qh4 {[%clk 0:00:14]} 35. Re3 {[%clk 0:00:07]}  Bd5 {[%clk 0:00:10]} 36. Qd1 {[%clk 0:00:06]}  Be4 {[%clk 0:00:09]} 37. Bc4+ {[%clk 0:00:04]}  Kg7 {[%clk 0:00:07]} 38. Rxd4 {[%clk 0:00:05]}  Rxd4 {[%clk 0:00:08]} 39. Qe2 {[%clk 0:00:05]}  Qf4 {[%clk 0:00:08]} 40. h4 {[%clk 0:00:01]}  gxh4 {[%clk 0:00:07]} 41. Ba6 {[%clk 0:00:00]}  Qe5 {[%clk 0:00:07]} 0-1


[Site "https://www.chess.com"]

[Event "Titled Tuesday Blitz August 15 Early 2023"]
[White "Putri, Regita Desyari"]
[Black "Ljukin, Sergei"]
[WhiteFideId "7109083"]
[BlackFideId "14102200"]
[WhiteElo "2204"]
[BlackElo "2454"]
[Result "0-1"]
[Round "2"]
[TimeControl "180+1"]
[Date "2023.08.15"]
[WhiteClock "0:00:03"]
[BlackClock "0:00:12"]
[Board "218"]

1. e4 {[%clk 0:02:59]}  e6 {[%clk 0:02:54]} 2. d4 {[%clk 0:02:58]}  d5 {[%clk 0:02:53]} 3. Nd2 {[%clk 0:02:58]}  Nf6 {[%clk 0:02:52]} 4. e5 {[%clk 0:02:58]}  Nfd7 {[%clk 0:02:52]} 5. Bd3 {[%clk 0:02:58]}  c5 {[%clk 0:02:53]} 6. c3 {[%clk 0:02:58]}  Nc6 {[%clk 0:02:54]} 7. Ne2 {[%clk 0:02:58]}  cxd4 {[%clk 0:02:54]} 8. cxd4 {[%clk 0:02:57]}  f6 {[%clk 0:02:54]} 9. exf6 {[%clk 0:02:54]}  Qxf6 {[%clk 0:02:54]} 10. Nf3 {[%clk 0:02:50]}  h6 {[%clk 0:02:54]} 11. O-O {[%clk 0:02:49]}  Bd6 {[%clk 0:02:54]} 12. a3 {[%clk 0:02:33]}  O-O {[%clk 0:02:52]} 13. Ng3 {[%clk 0:02:32]}  Rf7 {[%clk 0:02:45]} 14. Bc2 {[%clk 0:02:25]}  Nf8 {[%clk 0:02:43]} 15. Nh5 {[%clk 0:01:57]}  Qd8 {[%clk 0:02:23]} 16. Re1 {[%clk 0:01:48]}  Qe8 {[%clk 0:02:08]} 17. Ne5 {[%clk 0:01:35]}  Nxe5 {[%clk 0:01:57]} 18. dxe5 {[%clk 0:01:36]}  Bc5 {[%clk 0:01:57]} 19. Be3 {[%clk 0:01:35]}  d4 {[%clk 0:01:46]} 20. Bxh6 {[%clk 0:01:03]}  gxh6 {[%clk 0:01:20]} 21. Nf6+ {[%clk 0:01:02]}  Rxf6 {[%clk 0:01:19]} 22. exf6 {[%clk 0:01:03]}  Qf7 {[%clk 0:00:37]} 23. Qg4+ {[%clk 0:00:51]}  Kh8 {[%clk 0:00:36]} 24. Re5 {[%clk 0:00:41]}  Bd6 {[%clk 0:00:19]} 25. Rh5 {[%clk 0:00:33]}  Qxf6 {[%clk 0:00:19]} 26. Qh3 {[%clk 0:00:22]}  Kg7 {[%clk 0:00:18]} 27. Qg4+ {[%clk 0:00:17]}  Ng6 {[%clk 0:00:18]} 28. Re1 {[%clk 0:00:09]}  e5 {[%clk 0:00:17]} 29. Bf5 {[%clk 0:00:10]}  Bxf5 {[%clk 0:00:16]} 30. Rxf5 {[%clk 0:00:10]}  Qe6 {[%clk 0:00:14]} 31. Re4 {[%clk 0:00:06]}  Rf8 {[%clk 0:00:13]} 32. Rxf8 {[%clk 0:00:06]}  Qxg4 {[%clk 0:00:12]} 33. Rxg4 {[%clk 0:00:07]}  Bxf8 {[%clk 0:00:11]} 34. Kf1 {[%clk 0:00:06]}  Kf6 {[%clk 0:00:11]} 35. Ke2 {[%clk 0:00:04]}  Kf5 {[%clk 0:00:11]} 36. Rg3 {[%clk 0:00:04]}  e4 {[%clk 0:00:11]} 37. Rh3 {[%clk 0:00:04]}  Nf4+ {[%clk 0:00:11]} 38. Kd1 {[%clk 0:00:05]}  Nxh3 {[%clk 0:00:11]} 39. gxh3 {[%clk 0:00:03]}  Kf4 {[%clk 0:00:12]} 0-1


[Site "https://www.chess.com"]

[Event "Titled Tuesday Blitz August 15 Early 2023"]
[White "Spichkin, Alexander"]
[Black "Tqebuchava, Zurab"]
[WhiteFideId "4144074"]
[BlackFideId "13601113"]
[WhiteElo "2453"]
[BlackElo "2203"]
[Result "1-0"]
[Round "2"]
[TimeControl "180+1"]
[Date "2023.08.15"]
[WhiteClock "0:02:08"]
[BlackClock "0:00:00"]
[Board "219"]

1. f4 {[%clk 0:02:59]}  e6 {[%clk 0:02:59]} 2. Nf3 {[%clk 0:02:59]}  b6 {[%clk 0:02:58]} 3. e4 {[%clk 0:02:57]}  Bb7 {[%clk 0:02:58]} 4. d3 {[%clk 0:02:58]}  d6 {[%clk 0:02:55]} 5. Be2 {[%clk 0:02:58]}  Nf6 {[%clk 0:02:56]} 6. O-O {[%clk 0:02:58]}  Be7 {[%clk 0:02:56]} 7. Nc3 {[%clk 0:02:59]}  O-O {[%clk 0:02:56]} 8. Qe1 {[%clk 0:02:59]}  c5 {[%clk 0:02:56]} 9. Qg3 {[%clk 0:02:58]}  Kh8 {[%clk 0:02:50]} 10. b3 {[%clk 0:02:55]}  Nc6 {[%clk 0:02:49]} 11. Bb2 {[%clk 0:02:55]}  Nd4 {[%clk 0:02:47]} 12. Bd1 {[%clk 0:02:55]}  Rc8 {[%clk 0:02:37]} 13. Qh3 {[%clk 0:02:54]}  Nxf3+ {[%clk 0:02:32]} 14. Bxf3 {[%clk 0:02:54]}  d5 {[%clk 0:02:25]} 15. Rad1 {[%clk 0:02:52]}  d4 {[%clk 0:02:04]} 16. Ne2 {[%clk 0:02:52]}  Ng8 {[%clk 0:02:00]} 17. Ng3 {[%clk 0:02:51]}  Qc7 {[%clk 0:01:44]} 18. Bc1 {[%clk 0:02:47]}  b5 {[%clk 0:01:41]} 19. Nh5 {[%clk 0:02:45]}  g6 {[%clk 0:01:37]} 20. Ng3 {[%clk 0:02:44]}  c4 {[%clk 0:01:27]} 21. f5 {[%clk 0:02:36]}  cxb3 {[%clk 0:01:10]} 22. cxb3 {[%clk 0:02:35]}  exf5 {[%clk 0:00:59]} 23. exf5 {[%clk 0:02:28]}  Bxf3 {[%clk 0:00:56]} 24. Rxf3 {[%clk 0:02:28]}  Bf6 {[%clk 0:00:51]} 25. Rdf1 {[%clk 0:02:24]}  Bg7 {[%clk 0:00:39]} 26. Ne4 {[%clk 0:02:22]}  Rfe8 {[%clk 0:00:13]} 27. fxg6 {[%clk 0:02:15]}  fxg6 {[%clk 0:00:12]} 28. Ng5 {[%clk 0:02:15]}  h6 {[%clk 0:00:07]} 29. Nf7+ {[%clk 0:02:13]}  Kh7 {[%clk 0:00:07]} 30. Nxh6 {[%clk 0:02:11]}  Nxh6 {[%clk 0:00:06]} 31. Bxh6 {[%clk 0:02:11]}  Re7 {[%clk 0:00:00]} 32. Bf4+ {[%clk 0:02:08]} 1-0


[Site "https://www.chess.com"]

[Event "Titled Tuesday Blitz August 15 Early 2023"]
[White "Womacka, Mathias"]
[Black "Feliz Dotel, Dewar Bienvenido"]
[WhiteFideId "4611390"]
[BlackFideId "6402801"]
[WhiteElo "2453"]
[BlackElo "2201"]
[Result "1-0"]
[Round "2"]
[TimeControl "180+1"]
[Date "2023.08.15"]
[WhiteClock "0:00:26"]
[BlackClock "0:00:06"]
[Board "220"]

1. e4 {[%clk 0:03:00]}  e5 {[%clk 0:02:59]} 2. Nf3 {[%clk 0:02:59]}  Nc6 {[%clk 0:02:59]} 3. Bb5 {[%clk 0:02:58]}  Nf6 {[%clk 0:02:59]} 4. O-O {[%clk 0:02:57]}  Nxe4 {[%clk 0:02:59]} 5. Re1 {[%clk 0:02:58]}  Nd6 {[%clk 0:02:59]} 6. Nxe5 {[%clk 0:02:58]}  Be7 {[%clk 0:02:56]} 7. Bf1 {[%clk 0:02:57]}  Nxe5 {[%clk 0:02:56]} 8. Rxe5 {[%clk 0:02:56]}  O-O {[%clk 0:02:56]} 9. d4 {[%clk 0:02:57]}  Ne8 {[%clk 0:02:56]} 10. Re1 {[%clk 0:02:57]}  d5 {[%clk 0:02:56]} 11. Bf4 {[%clk 0:02:54]}  Bd6 {[%clk 0:02:50]} 12. Qd2 {[%clk 0:02:43]}  Nf6 {[%clk 0:02:40]} 13. Nc3 {[%clk 0:02:41]}  c6 {[%clk 0:02:39]} 14. Bg5 {[%clk 0:02:33]}  h6 {[%clk 0:02:38]} 15. Bh4 {[%clk 0:02:33]}  Bf5 {[%clk 0:02:20]} 16. h3 {[%clk 0:02:31]}  Be7 {[%clk 0:02:10]} 17. Bd3 {[%clk 0:02:21]}  Bxd3 {[%clk 0:02:07]} 18. Qxd3 {[%clk 0:02:22]}  Re8 {[%clk 0:02:07]} 19. Re2 {[%clk 0:02:12]}  Nh5 {[%clk 0:02:05]} 20. Bxe7 {[%clk 0:02:03]}  Rxe7 {[%clk 0:02:05]} 21. g3 {[%clk 0:01:48]}  Qd7 {[%clk 0:01:56]} 22. Rae1 {[%clk 0:01:45]}  Rxe2 {[%clk 0:01:48]} 23. Qxe2 {[%clk 0:01:45]}  Qxh3 {[%clk 0:01:47]} 24. Qe7 {[%clk 0:01:40]}  Rf8 {[%clk 0:01:40]} 25. Qxb7 {[%clk 0:01:29]}  Nxg3 {[%clk 0:01:24]} 26. fxg3 {[%clk 0:01:29]}  Qxg3+ {[%clk 0:01:23]} 27. Kf1 {[%clk 0:01:29]}  Qb8 {[%clk 0:00:47]} 28. Qxb8 {[%clk 0:01:22]}  Rxb8 {[%clk 0:00:48]} 29. b3 {[%clk 0:01:22]}  Rb4 {[%clk 0:00:45]} 30. Re8+ {[%clk 0:01:18]}  Kh7 {[%clk 0:00:45]} 31. Ne2 {[%clk 0:01:18]}  a5 {[%clk 0:00:38]} 32. Rc8 {[%clk 0:01:10]}  Rb6 {[%clk 0:00:36]} 33. Ra8 {[%clk 0:01:10]}  f5 {[%clk 0:00:31]} 34. Rxa5 {[%clk 0:01:09]}  g5 {[%clk 0:00:31]} 35. Ra8 {[%clk 0:01:07]}  f4 {[%clk 0:00:31]} 36. a4 {[%clk 0:01:05]}  Kg6 {[%clk 0:00:28]} 37. a5 {[%clk 0:01:00]}  Rb5 {[%clk 0:00:27]} 38. Nc3 {[%clk 0:00:50]}  Rb4 {[%clk 0:00:25]} 39. Rc8 {[%clk 0:00:42]}  Rxd4 {[%clk 0:00:23]} 40. Rxc6+ {[%clk 0:00:42]}  Kf5 {[%clk 0:00:20]} 41. a6 {[%clk 0:00:42]}  f3 {[%clk 0:00:14]} 42. a7 {[%clk 0:00:41]}  Rh4 {[%clk 0:00:07]} 43. a8=Q {[%clk 0:00:38]}  Rh1+ {[%clk 0:00:05]} 44. Kf2 {[%clk 0:00:38]}  g4 {[%clk 0:00:06]} 45. Qf8+ {[%clk 0:00:28]}  Ke5 {[%clk 0:00:06]} 46. Qe7+ {[%clk 0:00:26]}  Kd4 {[%clk 0:00:06]} 47. Qf6# {[%clk 0:00:26]} 1-0


[Site "https://www.chess.com"]

[Event "Titled Tuesday Blitz August 15 Early 2023"]
[White "Manukian, Artak"]
[Black "campochess"]
[WhiteFideId "13301373"]
[WhiteElo "2445"]
[BlackElo "2159"]
[Result "1-0"]
[Round "2"]
[TimeControl "180+1"]
[Date "2023.08.15"]
[WhiteClock "0:00:54"]
[BlackClock "0:00:29"]
[Board "225"]

1. e4 {[%clk 0:03:00]}  c5 {[%clk 0:02:29]} 2. Nf3 {[%clk 0:02:59]}  Nc6 {[%clk 0:02:29]} 3. c3 {[%clk 0:02:58]}  e6 {[%clk 0:02:28]} 4. d4 {[%clk 0:02:58]}  cxd4 {[%clk 0:02:28]} 5. cxd4 {[%clk 0:02:58]}  d5 {[%clk 0:02:28]} 6. e5 {[%clk 0:02:58]}  Nge7 {[%clk 0:02:27]} 7. Nc3 {[%clk 0:02:56]}  Nf5 {[%clk 0:02:23]} 8. Be3 {[%clk 0:02:52]}  Nxe3 {[%clk 0:02:22]} 9. fxe3 {[%clk 0:02:52]}  f6 {[%clk 0:02:20]} 10. Bb5 {[%clk 0:02:49]}  Bd7 {[%clk 0:02:19]} 11. O-O {[%clk 0:02:48]}  f5 {[%clk 0:02:13]} 12. Rc1 {[%clk 0:02:36]}  Be7 {[%clk 0:02:13]} 13. Na4 {[%clk 0:02:26]}  O-O {[%clk 0:02:09]} 14. Nc5 {[%clk 0:02:26]}  Rb8 {[%clk 0:02:03]} 15. Qd2 {[%clk 0:02:18]}  a6 {[%clk 0:01:42]} 16. Nxb7 {[%clk 0:02:12]}  Rxb7 {[%clk 0:01:39]} 17. Bxc6 {[%clk 0:02:12]}  Bxc6 {[%clk 0:01:39]} 18. Rxc6 {[%clk 0:02:13]}  Qd7 {[%clk 0:01:39]} 19. Rfc1 {[%clk 0:02:12]}  Rfb8 {[%clk 0:01:36]} 20. b3 {[%clk 0:02:04]}  Rb6 {[%clk 0:01:24]} 21. Qc2 {[%clk 0:01:59]}  Ba3 {[%clk 0:01:17]} 22. Rxb6 {[%clk 0:01:50]}  Rxb6 {[%clk 0:01:13]} 23. Qc8+ {[%clk 0:01:50]}  Qxc8 {[%clk 0:01:11]} 24. Rxc8+ {[%clk 0:01:51]}  Bf8 {[%clk 0:01:08]} 25. Kf1 {[%clk 0:01:46]}  h6 {[%clk 0:01:08]} 26. Ke2 {[%clk 0:01:45]}  Kf7 {[%clk 0:01:08]} 27. Kd3 {[%clk 0:01:43]}  Be7 {[%clk 0:01:07]} 28. Rc7 {[%clk 0:01:42]}  Ke8 {[%clk 0:01:06]} 29. h4 {[%clk 0:01:39]}  g6 {[%clk 0:01:03]} 30. g3 {[%clk 0:01:38]}  Kd8 {[%clk 0:01:00]} 31. Ra7 {[%clk 0:01:37]}  Rc6 {[%clk 0:00:58]} 32. Nd2 {[%clk 0:01:32]}  g5 {[%clk 0:00:57]} 33. hxg5 {[%clk 0:01:32]}  hxg5 {[%clk 0:00:57]} 34. a4 {[%clk 0:01:19]}  Bb4 {[%clk 0:00:56]} 35. Nf3 {[%clk 0:01:16]}  Rc3+ {[%clk 0:00:47]} 36. Ke2 {[%clk 0:01:16]}  Be7 {[%clk 0:00:46]} 37. Rxa6 {[%clk 0:01:14]}  Rxb3 {[%clk 0:00:45]} 38. Rxe6 {[%clk 0:01:11]}  Kd7 {[%clk 0:00:45]} 39. Ra6 {[%clk 0:01:10]}  g4 {[%clk 0:00:44]} 40. e6+ {[%clk 0:01:09]}  Kc8 {[%clk 0:00:42]} 41. Ne5 {[%clk 0:01:09]}  Bg5 {[%clk 0:00:41]} 42. Nd3 {[%clk 0:00:58]}  Rb7 {[%clk 0:00:38]} 43. Nc5 {[%clk 0:00:56]}  Rh7 {[%clk 0:00:29]} 44. Ra8+ {[%clk 0:00:54]} 1-0


[Site "https://www.chess.com"]

[Event "Titled Tuesday Blitz August 15 Early 2023"]
[White "Kielinkei"]
[Black "Aung Thant Zin"]
[BlackFideId "13000063"]
[WhiteElo "2443"]
[BlackElo "2136"]
[Result "0-1"]
[Round "2"]
[TimeControl "180+1"]
[Date "2023.08.15"]
[WhiteClock "0:00:06"]
[BlackClock "0:00:13"]
[Board "226"]

1. d4 {[%clk 0:03:00]}  Nf6 {[%clk 0:02:59]} 2. Nf3 {[%clk 0:02:58]}  d5 {[%clk 0:02:59]} 3. Bf4 {[%clk 0:02:55]}  e6 {[%clk 0:02:59]} 4. e3 {[%clk 0:02:53]}  c5 {[%clk 0:02:50]} 5. c3 {[%clk 0:02:53]}  Nc6 {[%clk 0:02:40]} 6. Bd3 {[%clk 0:02:53]}  h6 {[%clk 0:02:39]} 7. h3 {[%clk 0:02:51]}  Bd6 {[%clk 0:02:39]} 8. Bxd6 {[%clk 0:02:41]}  Qxd6 {[%clk 0:02:38]} 9. O-O {[%clk 0:02:40]}  O-O {[%clk 0:02:36]} 10. Nbd2 {[%clk 0:02:40]}  e5 {[%clk 0:02:36]} 11. dxe5 {[%clk 0:02:40]}  Nxe5 {[%clk 0:02:36]} 12. Nxe5 {[%clk 0:02:41]}  Qxe5 {[%clk 0:02:37]} 13. Nf3 {[%clk 0:02:41]}  Qe7 {[%clk 0:02:37]} 14. c4 {[%clk 0:02:40]}  Be6 {[%clk 0:02:36]} 15. cxd5 {[%clk 0:02:40]}  Nxd5 {[%clk 0:02:36]} 16. Qe2 {[%clk 0:02:36]}  Rfd8 {[%clk 0:02:34]} 17. a3 {[%clk 0:02:33]}  Rd6 {[%clk 0:02:15]} 18. Rfd1 {[%clk 0:02:29]}  Rad8 {[%clk 0:02:15]} 19. Rac1 {[%clk 0:02:26]}  b6 {[%clk 0:02:15]} 20. Bb1 {[%clk 0:02:05]}  Nf6 {[%clk 0:02:10]} 21. e4 {[%clk 0:01:36]}  Ne8 {[%clk 0:01:45]} 22. e5 {[%clk 0:01:31]}  R6d7 {[%clk 0:01:41]} 23. Rxd7 {[%clk 0:00:54]}  Qxd7 {[%clk 0:01:37]} 24. Qe4 {[%clk 0:00:54]}  g6 {[%clk 0:01:35]} 25. Qe3 {[%clk 0:00:47]}  Kg7 {[%clk 0:01:32]} 26. Bc2 {[%clk 0:00:47]}  Qb5 {[%clk 0:01:24]} 27. b3 {[%clk 0:00:36]}  Qa5 {[%clk 0:01:16]} 28. a4 {[%clk 0:00:35]}  Qb4 {[%clk 0:01:12]} 29. Rd1 {[%clk 0:00:33]}  Rxd1+ {[%clk 0:01:09]} 30. Bxd1 {[%clk 0:00:34]}  Nc7 {[%clk 0:01:08]} 31. h4 {[%clk 0:00:28]}  Nd5 {[%clk 0:01:05]} 32. Qd3 {[%clk 0:00:20]}  Nf4 {[%clk 0:01:01]} 33. Qe3 {[%clk 0:00:20]}  Bg4 {[%clk 0:00:52]} 34. g3 {[%clk 0:00:17]}  Ne6 {[%clk 0:00:50]} 35. Be2 {[%clk 0:00:15]}  h5 {[%clk 0:00:29]} 36. Kg2 {[%clk 0:00:15]}  a6 {[%clk 0:00:26]} 37. Nd2 {[%clk 0:00:14]}  Bxe2 {[%clk 0:00:24]} 38. Qxe2 {[%clk 0:00:15]}  Qd4 {[%clk 0:00:23]} 39. Nf3 {[%clk 0:00:14]}  Qd5 {[%clk 0:00:23]} 40. Qc4 {[%clk 0:00:08]}  Qxc4 {[%clk 0:00:22]} 41. bxc4 {[%clk 0:00:08]}  Nd8 {[%clk 0:00:21]} 42. Kf1 {[%clk 0:00:07]}  Nc6 {[%clk 0:00:21]} 43. Ke2 {[%clk 0:00:07]}  Kf8 {[%clk 0:00:21]} 44. Kd3 {[%clk 0:00:07]}  Ke7 {[%clk 0:00:21]} 45. Ke4 {[%clk 0:00:07]}  Ke6 {[%clk 0:00:21]} 46. Ng5+ {[%clk 0:00:08]}  Ke7 {[%clk 0:00:22]} 47. Kd5 {[%clk 0:00:08]}  Nb4+ {[%clk 0:00:21]} 48. Ke4 {[%clk 0:00:08]}  Nc2 {[%clk 0:00:20]} 49. Kd5 {[%clk 0:00:07]}  Nb4+ {[%clk 0:00:20]} 50. Ke4 {[%clk 0:00:07]}  Nc6 {[%clk 0:00:19]} 51. f3 {[%clk 0:00:05]}  Na5 {[%clk 0:00:19]} 52. Kd5 {[%clk 0:00:05]}  Nb3 {[%clk 0:00:15]} 53. Kc6 {[%clk 0:00:04]}  Nd2 {[%clk 0:00:15]} 54. Kxb6 {[%clk 0:00:04]}  Nxc4+ {[%clk 0:00:15]} 55. Kxa6 {[%clk 0:00:03]}  Nxe5 {[%clk 0:00:15]} 56. Kb6 {[%clk 0:00:03]}  c4 {[%clk 0:00:15]} 57. Ne4 {[%clk 0:00:01]}  f5 {[%clk 0:00:13]} 58. Nc3 {[%clk 0:00:01]}  Kd6 {[%clk 0:00:12]} 59. a5 {[%clk 0:00:01]}  Nc6 {[%clk 0:00:12]} 60. Kb5 {[%clk 0:00:02]}  Nxa5 {[%clk 0:00:11]} 61. Kxa5 {[%clk 0:00:02]}  Kc5 {[%clk 0:00:12]} 62. Ka4 {[%clk 0:00:02]}  Kd4 {[%clk 0:00:12]} 63. Kb4 {[%clk 0:00:03]}  Ke3 {[%clk 0:00:12]} 64. f4 {[%clk 0:00:03]}  Kf3 {[%clk 0:00:13]} 65. Kxc4 {[%clk 0:00:03]}  Kxg3 {[%clk 0:00:14]} 66. Nd5 {[%clk 0:00:03]}  Kxh4 {[%clk 0:00:13]} 67. Kd4 {[%clk 0:00:04]}  Kg3 {[%clk 0:00:13]} 68. Ke3 {[%clk 0:00:05]}  h4 {[%clk 0:00:13]} 69. Nc3 {[%clk 0:00:05]}  Kh3 {[%clk 0:00:12]} 70. Ne2 {[%clk 0:00:06]}  Kg2 {[%clk 0:00:11]} 71. Nd4 {[%clk 0:00:05]}  h3 {[%clk 0:00:11]} 72. Nf3 {[%clk 0:00:06]}  h2 {[%clk 0:00:11]} 73. Nxh2 {[%clk 0:00:07]}  Kxh2 {[%clk 0:00:11]} 74. Kf2 {[%clk 0:00:07]}  Kh3 {[%clk 0:00:11]} 75. Kf3 {[%clk 0:00:06]}  Kh4 {[%clk 0:00:11]} 76. Kf2 {[%clk 0:00:07]}  Kg4 {[%clk 0:00:12]} 77. Ke3 {[%clk 0:00:06]}  Kg3 {[%clk 0:00:13]} 0-1


[Site "https://www.chess.com"]

[Event "Titled Tuesday Blitz August 15 Early 2023"]
[White "Ben Artzi, Ido"]
[Black "Johnson, Ben"]
[WhiteFideId "2810913"]
[BlackFideId "2010917"]
[WhiteElo "2441"]
[BlackElo "2136"]
[Result "1-0"]
[Round "2"]
[TimeControl "180+1"]
[Date "2023.08.15"]
[WhiteClock "0:01:48"]
[BlackClock "0:00:00"]
[Board "227"]

1. d4 {[%clk 0:03:00]}  Nf6 {[%clk 0:02:59]} 2. c4 {[%clk 0:03:00]}  e6 {[%clk 0:03:00]} 3. Nc3 {[%clk 0:03:00]}  Bb4 {[%clk 0:02:59]} 4. Qc2 {[%clk 0:03:01]}  O-O {[%clk 0:02:59]} 5. Nf3 {[%clk 0:03:01]}  c5 {[%clk 0:02:56]} 6. dxc5 {[%clk 0:03:01]}  Na6 {[%clk 0:02:55]} 7. Bd2 {[%clk 0:02:46]}  Nxc5 {[%clk 0:02:53]} 8. e3 {[%clk 0:02:42]}  b6 {[%clk 0:02:41]} 9. Be2 {[%clk 0:02:34]}  Bb7 {[%clk 0:02:40]} 10. O-O {[%clk 0:02:34]}  Rc8 {[%clk 0:02:36]} 11. Rfd1 {[%clk 0:02:34]}  Qe7 {[%clk 0:02:27]} 12. Rac1 {[%clk 0:02:33]}  d6 {[%clk 0:02:15]} 13. Nb5 {[%clk 0:02:32]}  Bxd2 {[%clk 0:02:11]} 14. Qxd2 {[%clk 0:02:33]}  Nce4 {[%clk 0:01:52]} 15. Qb4 {[%clk 0:02:31]}  a5 {[%clk 0:01:40]} 16. Qa3 {[%clk 0:02:28]}  Rfd8 {[%clk 0:01:39]} 17. h3 {[%clk 0:02:28]}  Kf8 {[%clk 0:01:31]} 18. Nfd4 {[%clk 0:02:13]}  d5 {[%clk 0:01:21]} 19. Qxe7+ {[%clk 0:02:10]}  Kxe7 {[%clk 0:01:22]} 20. Na7 {[%clk 0:02:05]}  Rc5 {[%clk 0:01:08]} 21. cxd5 {[%clk 0:02:05]}  Ra8 {[%clk 0:00:34]} 22. Nac6+ {[%clk 0:01:58]}  Kd6 {[%clk 0:00:30]} 23. Nb5+ {[%clk 0:01:50]}  Rxb5 {[%clk 0:00:13]} 24. Bxb5 {[%clk 0:01:50]}  Nxd5 {[%clk 0:00:00]} 25. f3 {[%clk 0:01:48]} 1-0


[Site "https://www.chess.com"]